[Event "*** SCC Grand Prix: Titled Tuesday Blitz"]
[Site "Chess.com"]
[Date "2020.06.02"]
[Round "4"]
[White "kushagramohan"]
[Black "Flawless_Fighter"]
[Result "1/2-1/2"]
[WhiteElo "2644"]
[BlackElo "2469"]
[TimeControl "180+1"]
[EndTime "10:41:57 PDT"]
[Termination "Game drawn by repetition"]

1. e4 {[%clk 0:03:00.9]} 1... c6 {[%clk 0:02:59.8]} 2. d4 {[%clk 0:03:00.9]}
2... d5 {[%clk 0:03:00.7]} 3. Nd2 {[%clk 0:03:01.4]} 3... dxe4 {[%clk
0:03:00.7]} 4. Nxe4 {[%clk 0:03:02.3]} 4... Bf5 {[%clk 0:03:01.3]} 5. Ng3 {[%clk
0:03:02.7]} 5... Bg6 {[%clk 0:03:01.9]} 6. h4 {[%clk 0:03:03.3]} 6... h6 {[%clk
0:03:01.9]} 7. Nf3 {[%clk 0:03:04]} 7... Nd7 {[%clk 0:03:01.5]} 8. h5 {[%clk
0:03:04.5]} 8... Bh7 {[%clk 0:03:02.2]} 9. Bd3 {[%clk 0:03:05.1]} 9... Bxd3
{[%clk 0:03:02.8]} 10. Qxd3 {[%clk 0:03:06]} 10... e6 {[%clk 0:03:03.2]} 11. Bf4
{[%clk 0:03:06.6]} 11... Qa5+ {[%clk 0:03:02.3]} 12. Bd2 {[%clk 0:03:06.8]}
12... Bb4 {[%clk 0:02:59.9]} 13. c3 {[%clk 0:03:07.2]} 13... Be7 {[%clk
0:02:59.3]} 14. c4 {[%clk 0:03:07.2]} 14... Bb4 {[%clk 0:02:59.5]} 15. Ne4
{[%clk 0:03:07]} 15... Bxd2+ {[%clk 0:02:52.3]} 16. Nfxd2 {[%clk 0:03:06.1]}
16... Ngf6 {[%clk 0:02:45.6]} 17. Nd6+ {[%clk 0:03:04.3]} 17... Ke7 {[%clk
0:02:45.5]} 18. c5 {[%clk 0:02:46.6]} 18... b6 {[%clk 0:02:39]} 19. Nc4 {[%clk
0:02:36.4]} 19... Qb5 {[%clk 0:02:31]} 20. cxb6 {[%clk 0:02:13.4]} 20... axb6
{[%clk 0:02:22.4]} 21. Qg3 {[%clk 0:02:13.5]} 21... Qd5 {[%clk 0:02:03.7]} 22.
O-O {[%clk 0:01:28.8]} 22... b5 {[%clk 0:01:57.1]} 23. Ne5 {[%clk 0:01:24.8]}
23... Nxe5 {[%clk 0:01:53.7]} 24. dxe5 {[%clk 0:01:25.7]} 24... Nxh5 {[%clk
0:01:45.9]} 25. Qh4+ {[%clk 0:01:22.7]} 25... g5 {[%clk 0:01:45.5]} 26. Qxh5
{[%clk 0:01:18.7]} 26... Qxd2 {[%clk 0:01:45.7]} 27. Qf3 {[%clk 0:01:13.4]}
27... Qf4 {[%clk 0:01:34.8]} 28. Qxc6 {[%clk 0:01:02.6]} 28... Qxe5 {[%clk
0:01:34.7]} 29. Rfe1 {[%clk 0:01:02]} 29... Qd6 {[%clk 0:01:33]} 30. Qxb5 {[%clk
0:01:00.8]} 30... Rhb8 {[%clk 0:01:33.5]} 31. Qe2 {[%clk 0:01:00.9]} 31... Rb4
{[%clk 0:01:32.3]} 32. b3 {[%clk 0:00:55.7]} 32... Rd4 {[%clk 0:01:30.5]} 33. a4
{[%clk 0:00:48.5]} 33... Rd2 {[%clk 0:01:22.2]} 34. Qf3 {[%clk 0:00:48]} 34...
Rb8 {[%clk 0:01:22.3]} 35. Rad1 {[%clk 0:00:44.9]} 35... Rxd1 {[%clk 0:01:15.3]}
36. Rxd1 {[%clk 0:00:45.8]} 36... Qb4 {[%clk 0:01:16]} 37. Rb1 {[%clk
0:00:45.3]} 37... Rd8 {[%clk 0:01:13.2]} 38. Rc1 {[%clk 0:00:41.7]} 38... Rd7
{[%clk 0:01:07.3]} 39. g3 {[%clk 0:00:30.8]} 39... g4 {[%clk 0:01:05.7]} 40. Qe3
{[%clk 0:00:27.8]} 40... Rb7 {[%clk 0:01:01]} 41. Qxh6 {[%clk 0:00:23.8]} 41...
Qa5 {[%clk 0:00:46]} 42. Qh4+ {[%clk 0:00:23.5]} 42... Kd7 {[%clk 0:00:40.4]}
43. Qxg4 {[%clk 0:00:23.9]} 43... Rxb3 {[%clk 0:00:37.7]} 44. Rd1+ {[%clk
0:00:24.1]} 44... Ke8 {[%clk 0:00:23.7]} 45. Qh4 {[%clk 0:00:24.5]} 45... Rb4
{[%clk 0:00:18.4]} 46. Qh8+ {[%clk 0:00:24]} 46... Ke7 {[%clk 0:00:19.1]} 47.
Qc8 {[%clk 0:00:17.6]} 47... Rxa4 {[%clk 0:00:17.1]} 48. Qd7+ {[%clk 0:00:17.9]}
48... Kf6 {[%clk 0:00:17.7]} 49. Qd3 {[%clk 0:00:17.4]} 49... Qa6 {[%clk
0:00:08.6]} 50. Qf3+ {[%clk 0:00:17.2]} 50... Ke7 {[%clk 0:00:08.6]} 51. Qh5
{[%clk 0:00:17.2]} 51... Qa5 {[%clk 0:00:05.6]} 52. Qh8 {[%clk 0:00:15.1]} 52...
Rb4 {[%clk 0:00:05.2]} 53. Qc8 {[%clk 0:00:14.2]} 53... Rb5 {[%clk 0:00:04.2]}
54. Qd7+ {[%clk 0:00:14.4]} 54... Kf6 {[%clk 0:00:04.9]} 55. Qd4+ {[%clk
0:00:15]} 55... Ke7 {[%clk 0:00:04.6]} 56. Qd3 {[%clk 0:00:15.4]} 56... Rd5
{[%clk 0:00:04.1]} 57. Qe2 {[%clk 0:00:15.2]} 57... Rxd1+ {[%clk 0:00:03.7]} 58.
Qxd1 {[%clk 0:00:16.1]} 58... Qe5 {[%clk 0:00:04.1]} 59. Qc2 {[%clk 0:00:16.2]}
59... Qf5 {[%clk 0:00:03.8]} 60. Qxf5 {[%clk 0:00:15.4]} 60... exf5 {[%clk
0:00:04.7]} 61. Kg2 {[%clk 0:00:16.3]} 61... Kf6 {[%clk 0:00:04.8]} 62. Kf3
{[%clk 0:00:17.2]} 62... Ke5 {[%clk 0:00:04.9]} 63. Ke3 {[%clk 0:00:16.1]} 63...
Kd5 {[%clk 0:00:04.6]} 64. Kf4 {[%clk 0:00:16.1]} 64... Ke6 {[%clk 0:00:05.3]}
65. Kg5 {[%clk 0:00:16.4]} 65... Ke5 {[%clk 0:00:05.8]} 66. f3 {[%clk
0:00:15.9]} 66... f6+ {[%clk 0:00:02.9]} 67. Kg6 {[%clk 0:00:16.1]} 67... f4
{[%clk 0:00:02.8]} 68. g4 {[%clk 0:00:12.4]} 68... Kd4 {[%clk 0:00:03]} 69. Kxf6
{[%clk 0:00:10.6]} 69... Ke3 {[%clk 0:00:03.5]} 70. g5 {[%clk 0:00:11.3]} 70...
Kxf3 {[%clk 0:00:04.4]} 71. g6 {[%clk 0:00:12.2]} 71... Ke2 {[%clk 0:00:04.6]}
72. g7 {[%clk 0:00:13.1]} 72... f3 {[%clk 0:00:05.3]} 73. g8=Q {[%clk 0:00:14]}
73... f2 {[%clk 0:00:06.1]} 74. Qe6+ {[%clk 0:00:14.3]} 74... Kf1 {[%clk
0:00:05.9]} 75. Kg5 {[%clk 0:00:13.6]} 75... Kg1 {[%clk 0:00:06.5]} 76. Qg4+
{[%clk 0:00:13.4]} 76... Kh1 {[%clk 0:00:06.6]} 77. Qh3+ {[%clk 0:00:13.6]}
77... Kg1 {[%clk 0:00:06.9]} 78. Qg3+ {[%clk 0:00:14]} 78... Kh1 {[%clk
0:00:07.3]} 79. Qf3+ {[%clk 0:00:14.3]} 79... Kg1 {[%clk 0:00:07.2]} 80. Qe3
{[%clk 0:00:14.2]} 80... Kh1 {[%clk 0:00:07]} 81. Qh3+ {[%clk 0:00:13.6]} 81...
Kg1 {[%clk 0:00:07.3]} 82. Qg4+ {[%clk 0:00:13.8]} 82... Kh1 {[%clk 0:00:07.4]}
83. Qe2 {[%clk 0:00:09.4]} 83... Kg1 {[%clk 0:00:07.3]} 84. Qe3 {[%clk
0:00:09.8]} 84... Kh1 {[%clk 0:00:07.6]} 85. Qh3+ {[%clk 0:00:05.3]} 1/2-1/2

[Event "*** SCC Grand Prix: Titled Tuesday Blitz"]
[Site "Chess.com"]
[Date "2020.06.02"]
[Round "4"]
[White "gurelediz"]
[Black "Djager97"]
[Result "1-0"]
[WhiteElo "2608"]
[BlackElo "2382"]
[TimeControl "180+1"]
[EndTime "10:42:25 PDT"]
[Termination "gurelediz won on time"]

1. d4 {[%clk 0:03:00.9]} 1... d5 {[%clk 0:02:59.9]} 2. Nf3 {[%clk 0:03:00]} 2...
Nf6 {[%clk 0:02:59.2]} 3. c4 {[%clk 0:03:00]} 3... e6 {[%clk 0:02:59.4]} 4. cxd5
{[%clk 0:02:59.8]} 4... exd5 {[%clk 0:02:59.5]} 5. Nc3 {[%clk 0:03:00.3]} 5...
c6 {[%clk 0:02:58]} 6. Bg5 {[%clk 0:03:00.7]} 6... Bf5 {[%clk 0:02:56.9]} 7. e3
{[%clk 0:03:00.7]} 7... Be7 {[%clk 0:02:56]} 8. Bd3 {[%clk 0:03:00.6]} 8... Bxd3
{[%clk 0:02:56.6]} 9. Qxd3 {[%clk 0:03:01.5]} 9... O-O {[%clk 0:02:57.2]} 10.
O-O {[%clk 0:03:01.9]} 10... Nbd7 {[%clk 0:02:55.1]} 11. Rab1 {[%clk 0:02:56.8]}
11... h6 {[%clk 0:02:52.6]} 12. Bh4 {[%clk 0:02:53.3]} 12... Ne4 {[%clk
0:02:42.6]} 13. Bxe7 {[%clk 0:02:32.8]} 13... Qxe7 {[%clk 0:02:41.7]} 14. b4
{[%clk 0:02:33.3]} 14... a6 {[%clk 0:02:39.2]} 15. a4 {[%clk 0:02:30.7]} 15...
Rfc8 {[%clk 0:02:25.7]} 16. Rfc1 {[%clk 0:02:22.9]} 16... Nxc3 {[%clk
0:02:15.3]} 17. Rxc3 {[%clk 0:02:21.4]} 17... Qd6 {[%clk 0:02:08.4]} 18. b5
{[%clk 0:02:15.5]} 18... cxb5 {[%clk 0:02:06.5]} 19. axb5 {[%clk 0:02:15.3]}
19... Rxc3 {[%clk 0:02:01.6]} 20. Qxc3 {[%clk 0:02:16.2]} 20... a5 {[%clk
0:02:02]} 21. Ne5 {[%clk 0:02:11.8]} 21... a4 {[%clk 0:01:52.5]} 22. Nxd7 {[%clk
0:02:03.8]} 22... Qxd7 {[%clk 0:01:53.4]} 23. h3 {[%clk 0:01:59.7]} 23... a3
{[%clk 0:01:48.9]} 24. Ra1 {[%clk 0:01:57.9]} 24... Qxb5 {[%clk 0:01:42.3]} 25.
Rxa3 {[%clk 0:01:56.2]} 25... Rxa3 {[%clk 0:01:43.2]} 26. Qxa3 {[%clk
0:01:54.2]} 26... b6 {[%clk 0:01:25.3]} 27. Qe7 {[%clk 0:01:51.5]} 27... Qc6
{[%clk 0:01:14.8]} 28. g4 {[%clk 0:01:50]} 28... b5 {[%clk 0:01:03.3]} 29. Kh2
{[%clk 0:01:27.3]} 29... g6 {[%clk 0:00:54.4]} 30. h4 {[%clk 0:01:20]} 30... Qe6
{[%clk 0:00:48]} 31. Qd8+ {[%clk 0:01:12.6]} 31... Kg7 {[%clk 0:00:46.2]} 32.
Kg3 {[%clk 0:01:12.5]} 32... h5 {[%clk 0:00:32.8]} 33. gxh5 {[%clk 0:00:46.6]}
33... gxh5 {[%clk 0:00:33.7]} 34. Kh2 {[%clk 0:00:33.4]} 34... b4 {[%clk
0:00:26.4]} 35. Qg5+ {[%clk 0:00:28.9]} 35... Kf8 {[%clk 0:00:17.4]} 36. Qf4
{[%clk 0:00:16.7]} 36... Qg4 {[%clk 0:00:11.8]} 37. Qb8+ {[%clk 0:00:14.9]}
37... Kg7 {[%clk 0:00:11.9]} 38. Qe5+ {[%clk 0:00:09.3]} 38... Kg8 {[%clk
0:00:11]} 39. Qe8+ {[%clk 0:00:08.5]} 39... Kg7 {[%clk 0:00:10]} 40. Qe5+ {[%clk
0:00:09.1]} 40... Kh7 {[%clk 0:00:07.9]} 41. Qxd5 {[%clk 0:00:07.2]} 41... Qxh4+
{[%clk 0:00:08.1]} 42. Kg2 {[%clk 0:00:06.2]} 42... Qg4+ {[%clk 0:00:08.4]} 43.
Kf1 {[%clk 0:00:06.2]} 43... Qd1+ {[%clk 0:00:07.7]} 44. Kg2 {[%clk 0:00:06.6]}
44... Qg4+ {[%clk 0:00:06.9]} 45. Kh2 {[%clk 0:00:06.9]} 45... Qh4+ {[%clk
0:00:03.9]} 46. Kg1 {[%clk 0:00:06.9]} 46... Qg4+ {[%clk 0:00:04.1]} 47. Kh1
{[%clk 0:00:06.7]} 47... Kg7 {[%clk 0:00:03]} 48. Qb3 {[%clk 0:00:04.2]} 48...
Qh3+ {[%clk 0:00:02.4]} 49. Kg1 {[%clk 0:00:04.3]} 49... Qg4+ {[%clk 0:00:02.5]}
50. Kf1 {[%clk 0:00:04.7]} 50... Qh3+ {[%clk 0:00:01.5]} 51. Ke2 {[%clk
0:00:03.8]} 51... Qg4+ {[%clk 0:00:01.8]} 52. Kd2 {[%clk 0:00:04.2]} 52... Qf3
{[%clk 0:00:02]} 53. Ke1 {[%clk 0:00:04.4]} 53... Qh1+ {[%clk 0:00:01.7]} 54.
Ke2 {[%clk 0:00:04.4]} 54... Qh2 {[%clk 0:00:01.5]} 55. Qxb4 {[%clk 0:00:04.5]}
55... h4 {[%clk 0:00:02.1]} 56. Qe7 {[%clk 0:00:04.5]} 56... h3 {[%clk
0:00:02.2]} 57. d5 {[%clk 0:00:04.4]} 57... Qg2 {[%clk 0:00:02.6]} 58. Qe5+
{[%clk 0:00:04.2]} 58... Kg6 {[%clk 0:00:02.1]} 59. Qd6+ {[%clk 0:00:03.7]}
59... Kg7 {[%clk 0:00:02.1]} 60. Qe5+ {[%clk 0:00:03.9]} 60... Kh7 {[%clk
0:00:02.3]} 61. Qf5+ {[%clk 0:00:02.5]} 61... Kg7 {[%clk 0:00:02.6]} 62. d6
{[%clk 0:00:02.8]} 62... h2 {[%clk 0:00:02.2]} 63. Qe5+ {[%clk 0:00:03.2]} 63...
Kh7 {[%clk 0:00:02.1]} 64. Qf5+ {[%clk 0:00:03.6]} 64... Kg7 {[%clk 0:00:02.5]}
65. Qe5+ {[%clk 0:00:03.8]} 65... Kg6 {[%clk 0:00:02.9]} 66. d7 {[%clk
0:00:03.7]} 66... h1=Q {[%clk 0:00:02.8]} 67. Qd6+ {[%clk 0:00:03.6]} 67... Kg7
{[%clk 0:00:02.7]} 68. Qd4+ {[%clk 0:00:03.3]} 68... Kh7 {[%clk 0:00:02.9]} 69.
Qd3+ {[%clk 0:00:03.3]} 69... Kg7 {[%clk 0:00:02.3]} 70. Qd4+ {[%clk 0:00:03.4]}
70... Kh7 {[%clk 0:00:02.5]} 71. Qd3+ {[%clk 0:00:03.5]} 71... Kh6 {[%clk
0:00:03]} 72. Qd6+ {[%clk 0:00:03.3]} 72... Kh5 {[%clk 0:00:03.5]} 73. Qe5+
{[%clk 0:00:03.1]} 73... Kh6 {[%clk 0:00:03.5]} 74. Qf6+ {[%clk 0:00:03]} 74...
Qg6 {[%clk 0:00:02.7]} 75. Qh8+ {[%clk 0:00:03.1]} 75... Qh7 {[%clk 0:00:01.8]}
76. Qxh7+ {[%clk 0:00:03.6]} 76... Kxh7 {[%clk 0:00:02.7]} 77. d8=Q {[%clk
0:00:04.1]} 77... Qh5+ {[%clk 0:00:03.3]} 78. Kd2 {[%clk 0:00:04.4]} 78... Kg7
{[%clk 0:00:02.7]} 79. Qd4+ {[%clk 0:00:04.5]} 79... f6 {[%clk 0:00:03.3]} 80.
Qd7+ {[%clk 0:00:04.4]} 80... Kg8 {[%clk 0:00:02.9]} 81. Qe6+ {[%clk 0:00:04]}
81... Kg7 {[%clk 0:00:03.2]} 82. Qe7+ {[%clk 0:00:04.2]} 82... Kg8 {[%clk
0:00:03]} 83. Qxf6 {[%clk 0:00:04.3]} 83... Qd5+ {[%clk 0:00:03.5]} 84. Ke2
{[%clk 0:00:04.5]} 84... Qc4+ {[%clk 0:00:03.1]} 85. Kf3 {[%clk 0:00:04.7]}
85... Qd5+ {[%clk 0:00:03.4]} 86. Kg3 {[%clk 0:00:05.1]} 86... Qc4 {[%clk
0:00:02.3]} 87. f4 {[%clk 0:00:05.1]} 87... Qe2 {[%clk 0:00:01.9]} 88. Qe5
{[%clk 0:00:05.4]} 88... Qe1+ {[%clk 0:00:01.7]} 89. Kf3 {[%clk 0:00:05.8]}
89... Qf1+ {[%clk 0:00:01.9]} 90. Ke4 {[%clk 0:00:06.7]} 90... Qb1+ {[%clk
0:00:01.9]} 91. Kd4 {[%clk 0:00:06.9]} 91... Qa1+ {[%clk 0:00:01.9]} 92. Kd5
{[%clk 0:00:07.1]} 92... Qa2+ {[%clk 0:00:02.3]} 93. Kd6 {[%clk 0:00:06.8]}
93... Qa6+ {[%clk 0:00:01.8]} 94. Ke7 {[%clk 0:00:06.9]} 94... Qb7+ {[%clk
0:00:01.6]} 95. Kf6 {[%clk 0:00:07.2]} 95... Qb1 {[%clk 0:00:01.2]} 96. Qg5+
{[%clk 0:00:06.4]} 1-0

[Event "*** SCC Grand Prix: Titled Tuesday Blitz"]
[Site "Chess.com"]
[Date "2020.06.02"]
[Round "4"]
[White "RobertoJBM"]
[Black "TheNextLevelFan"]
[Result "1/2-1/2"]
[WhiteElo "2621"]
[BlackElo "2438"]
[TimeControl "180+1"]
[EndTime "10:42:36 PDT"]
[Termination "Game drawn - insufficient material"]

1. d4 {[%clk 0:03:00.9]} 1... d5 {[%clk 0:02:58.6]} 2. c4 {[%clk 0:02:59.6]}
2... dxc4 {[%clk 0:02:58.9]} 3. Nf3 {[%clk 0:02:59]} 3... Nf6 {[%clk 0:02:58.5]}
4. e3 {[%clk 0:02:59.1]} 4... a6 {[%clk 0:02:58.2]} 5. a4 {[%clk 0:02:58.3]}
5... e6 {[%clk 0:02:57.4]} 6. Bxc4 {[%clk 0:02:57.9]} 6... c5 {[%clk 0:02:56]}
7. O-O {[%clk 0:02:57.3]} 7... Nc6 {[%clk 0:02:56.5]} 8. Qe2 {[%clk 0:02:57.2]}
8... Be7 {[%clk 0:02:55.9]} 9. Rd1 {[%clk 0:02:57.1]} 9... Qc7 {[%clk
0:02:55.5]} 10. Nc3 {[%clk 0:02:56.1]} 10... O-O {[%clk 0:02:55.1]} 11. d5
{[%clk 0:02:55.8]} 11... exd5 {[%clk 0:02:54.9]} 12. Nxd5 {[%clk 0:02:56.7]}
12... Nxd5 {[%clk 0:02:54.8]} 13. Bxd5 {[%clk 0:02:57.5]} 13... Bg4 {[%clk
0:02:51]} 14. h3 {[%clk 0:02:50.6]} 14... Bh5 {[%clk 0:02:50.6]} 15. Bd2 {[%clk
0:02:40]} 15... Bf6 {[%clk 0:02:40.3]} 16. Bc3 {[%clk 0:02:36.1]} 16... Bxc3
{[%clk 0:02:37.7]} 17. bxc3 {[%clk 0:02:37]} 17... Rab8 {[%clk 0:02:23.6]} 18.
Qc4 {[%clk 0:02:09.1]} 18... Ne7 {[%clk 0:02:18.2]} 19. Be4 {[%clk 0:02:01.9]}
19... b5 {[%clk 0:02:13.3]} 20. axb5 {[%clk 0:02:00.9]} 20... axb5 {[%clk
0:02:14.2]} 21. Qe2 {[%clk 0:01:53.7]} 21... Rb6 {[%clk 0:01:56.1]} 22. Rd2
{[%clk 0:01:35.1]} 22... Re6 {[%clk 0:01:53.2]} 23. Bd5 {[%clk 0:01:24.2]} 23...
Nxd5 {[%clk 0:01:35.8]} 24. Rxd5 {[%clk 0:01:25.1]} 24... Bxf3 {[%clk
0:01:32.9]} 25. Qxf3 {[%clk 0:01:23.2]} 25... b4 {[%clk 0:01:26.8]} 26. cxb4
{[%clk 0:01:17]} 26... cxb4 {[%clk 0:01:27.7]} 27. Rb1 {[%clk 0:01:15.8]} 27...
Rb8 {[%clk 0:01:25]} 28. Qd1 {[%clk 0:01:06]} 28... h6 {[%clk 0:01:21.6]} 29.
Qb3 {[%clk 0:01:02.3]} 29... Rc6 {[%clk 0:01:14.3]} 30. Qd1 {[%clk 0:00:39.8]}
30... Rc3 {[%clk 0:01:06.3]} 31. Rd7 {[%clk 0:00:37.1]} 31... Qc4 {[%clk
0:00:50.9]} 32. Rd4 {[%clk 0:00:27.6]} 32... Qc5 {[%clk 0:00:45.5]} 33. Rd5
{[%clk 0:00:24.9]} 33... Qe7 {[%clk 0:00:40.6]} 34. Rd7 {[%clk 0:00:23.5]} 34...
Qe6 {[%clk 0:00:39.8]} 35. Rd8+ {[%clk 0:00:19]} 35... Rxd8 {[%clk 0:00:38.8]}
36. Qxd8+ {[%clk 0:00:19.9]} 36... Kh7 {[%clk 0:00:38.8]} 37. Rxb4 {[%clk
0:00:20.3]} 37... Rc1+ {[%clk 0:00:33.6]} 38. Kh2 {[%clk 0:00:19.3]} 38... Qe5+
{[%clk 0:00:33.9]} 39. g3 {[%clk 0:00:18.4]} 39... Rc3 {[%clk 0:00:25.7]} 40.
Qd4 {[%clk 0:00:16.9]} 40... Qf5 {[%clk 0:00:18.9]} 41. Qe4 {[%clk 0:00:17.1]}
41... Qxe4 {[%clk 0:00:18.4]} 42. Rxe4 {[%clk 0:00:18]} 42... Kg6 {[%clk
0:00:17.9]} 43. Kg2 {[%clk 0:00:18.5]} 43... f6 {[%clk 0:00:17.7]} 44. Rd4
{[%clk 0:00:19]} 44... h5 {[%clk 0:00:17]} 45. h4 {[%clk 0:00:19.4]} 45... Ra3
{[%clk 0:00:16.9]} 46. Kf3 {[%clk 0:00:20.3]} 46... Ra2 {[%clk 0:00:17]} 47. Rd3
{[%clk 0:00:19.7]} 47... Rb2 {[%clk 0:00:17]} 48. Rc3 {[%clk 0:00:19.8]} 48...
Ra2 {[%clk 0:00:17.1]} 49. Rc7 {[%clk 0:00:19.8]} 49... Rb2 {[%clk 0:00:17.2]}
50. Kg2 {[%clk 0:00:20]} 50... Rb3 {[%clk 0:00:17.1]} 51. Rc2 {[%clk 0:00:20]}
51... Ra3 {[%clk 0:00:17.1]} 52. Kf3 {[%clk 0:00:19.7]} 52... Rb3 {[%clk
0:00:17.5]} 53. Kf4 {[%clk 0:00:19.2]} 53... Rb4+ {[%clk 0:00:17.5]} 54. e4
{[%clk 0:00:17.2]} 54... Ra4 {[%clk 0:00:18.1]} 55. Rc6 {[%clk 0:00:15.5]} 55...
Rb4 {[%clk 0:00:18.2]} 56. Ke3 {[%clk 0:00:14.6]} 56... Rb3+ {[%clk 0:00:18.5]}
57. Kd2 {[%clk 0:00:13.2]} 57... Rf3 {[%clk 0:00:17.1]} 58. Ke2 {[%clk
0:00:12.4]} 58... Ra3 {[%clk 0:00:16.7]} 59. e5 {[%clk 0:00:12]} 59... Kf5
{[%clk 0:00:13.6]} 60. exf6 {[%clk 0:00:12.2]} 60... gxf6 {[%clk 0:00:14.5]} 61.
Rc4 {[%clk 0:00:10.2]} 61... Kg6 {[%clk 0:00:14.4]} 62. Kf1 {[%clk 0:00:10.4]}
62... Rb3 {[%clk 0:00:14.1]} 63. Kg2 {[%clk 0:00:10.6]} 63... Ra3 {[%clk
0:00:14.5]} 64. Rf4 {[%clk 0:00:11.5]} 64... Rb3 {[%clk 0:00:14.4]} 65. Rf3
{[%clk 0:00:12.4]} 65... Rb4 {[%clk 0:00:14.8]} 66. Re3 {[%clk 0:00:12.8]} 66...
Ra4 {[%clk 0:00:15]} 67. Kf3 {[%clk 0:00:13.7]} 67... Rb4 {[%clk 0:00:15.5]} 68.
Re4 {[%clk 0:00:14.1]} 68... Rb3+ {[%clk 0:00:15.9]} 69. Re3 {[%clk 0:00:14.5]}
69... Rb2 {[%clk 0:00:16.3]} 70. Rd3 {[%clk 0:00:14.9]} 70... Ra2 {[%clk
0:00:16.3]} 71. Rd8 {[%clk 0:00:15]} 71... Ra3+ {[%clk 0:00:16.2]} 72. Ke2
{[%clk 0:00:15.3]} 72... Ra2+ {[%clk 0:00:16.3]} 73. Rd2 {[%clk 0:00:16.2]}
73... Ra3 {[%clk 0:00:16.3]} 74. Rd3 {[%clk 0:00:16.6]} 74... Ra2+ {[%clk
0:00:16.6]} 75. Ke3 {[%clk 0:00:17.2]} 75... Ra4 {[%clk 0:00:17.1]} 76. Rd8
{[%clk 0:00:17.1]} 76... Ra3+ {[%clk 0:00:17.1]} 77. Ke4 {[%clk 0:00:17.4]}
77... Ra4+ {[%clk 0:00:17.5]} 78. Kf3 {[%clk 0:00:17.4]} 78... Ra3+ {[%clk
0:00:17.6]} 79. Kg2 {[%clk 0:00:17.9]} 79... Rb3 {[%clk 0:00:17.2]} 80. Rg8+
{[%clk 0:00:18]} 80... Kf7 {[%clk 0:00:17.3]} 81. Rc8 {[%clk 0:00:18.9]} 81...
Kg6 {[%clk 0:00:17.2]} 82. Rc6 {[%clk 0:00:17.8]} 82... Ra3 {[%clk 0:00:17.2]}
83. f3 {[%clk 0:00:16.9]} 83... Rb3 {[%clk 0:00:16.8]} 84. g4 {[%clk 0:00:16.9]}
84... hxg4 {[%clk 0:00:14.6]} 85. fxg4 {[%clk 0:00:17.8]} 85... Kg7 {[%clk
0:00:13.3]} 86. Rc4 {[%clk 0:00:16.2]} 86... Ra3 {[%clk 0:00:13.1]} 87. Rf4
{[%clk 0:00:15.7]} 87... Kg6 {[%clk 0:00:12.6]} 88. Rf3 {[%clk 0:00:16.1]} 88...
Ra4 {[%clk 0:00:12.2]} 89. Kg3 {[%clk 0:00:16.4]} 89... Ra1 {[%clk 0:00:11.8]}
90. h5+ {[%clk 0:00:16.7]} 90... Kg7 {[%clk 0:00:11.5]} 91. Kf4 {[%clk
0:00:15.3]} 91... Ra4+ {[%clk 0:00:10.7]} 92. Kg3 {[%clk 0:00:15.7]} 92... Rb4
{[%clk 0:00:10.5]} 93. Kh4 {[%clk 0:00:15.9]} 93... Ra4 {[%clk 0:00:10.2]} 94.
Rc3 {[%clk 0:00:15.4]} 94... Rb4 {[%clk 0:00:08.4]} 95. Rc7+ {[%clk 0:00:15.2]}
95... Kh6 {[%clk 0:00:08.3]} 96. Rf7 {[%clk 0:00:14]} 96... Rf4 {[%clk
0:00:08.1]} 97. Kg3 {[%clk 0:00:09.3]} 97... Rf1 {[%clk 0:00:08.1]} 98. Kg2
{[%clk 0:00:04.7]} 98... Rf4 {[%clk 0:00:07.8]} 99. Kh3 {[%clk 0:00:05.1]} 99...
Rf3+ {[%clk 0:00:06.4]} 100. Kh4 {[%clk 0:00:03.1]} 100... Rf4 {[%clk
0:00:05.1]} 101. Rxf6+ {[%clk 0:00:02.6]} 101... Rxf6 {[%clk 0:00:04.9]} 102.
g5+ {[%clk 0:00:03.5]} 102... Kg7 {[%clk 0:00:05.6]} 103. gxf6+ {[%clk
0:00:04.4]} 103... Kxf6 {[%clk 0:00:06.5]} 104. Kg4 {[%clk 0:00:05]} 104... Kg7
{[%clk 0:00:06.8]} 105. Kg5 {[%clk 0:00:05.9]} 105... Kh8 {[%clk 0:00:07.7]}
106. h6 {[%clk 0:00:06.8]} 106... Kg8 {[%clk 0:00:08]} 107. h7+ {[%clk
0:00:07.7]} 107... Kh8 {[%clk 0:00:08.9]} 108. Kf4 {[%clk 0:00:08.6]} 108...
Kxh7 {[%clk 0:00:09.1]} 1/2-1/2